Cogmind - Beta 13 @@@ ROGUE MODE // 2024.04.04 @ 23:44:31 Player: chexo4 Result: Self-destructed Performance ------------- Evolutions (2) 1000 Regions Visited (4) 800 Robots Destroyed (19) 95 Value Destroyed (226) 226 Prototype IDs (4) 80 Alien Tech Used (0) 0 Bonus (0) 0 TOTAL SCORE: 2201 Bonus ------- None Cogmind --------- Core Integrity 385/550 Matter 294/300 Energy 100/100 System Corruption 0% Temperature Cool (9) Movement Core (1400) Ox27 Location -8/Materials Parts ------- > --- POWER (2) -------- (None) > --- PROPULSION (4) --- (None) > --- UTILITY (3) ------ Huge Storage Unit Improved Utility Shielding System Shield > --- WEAPON (2) ------- (None) > --- INVENTORY (25) --- Light Ion Engine Aluminum Leg Aluminum Leg Large Storage Unit High-capacity Storage Unit Improved Terrain Scanner Core Shielding Assault Rifle Assault Rifle Light Assault Rifle Peak State ------------ > --- POWER ------------ Nuclear Core Nuclear Core > --- PROPULSION ------- Wheel Wheel > --- UTILITY ---------- Large Storage Unit Improved Utility Shielding System Shield > --- WEAPON ----------- Advanced Beam Cannon Minigun > --- INVENTORY -------- Light Ion Engine Light Ion Engine Aluminum Leg Aluminum Leg High-capacity Storage Unit Improved Terrain Scanner Core Shielding Assault Rifle Assault Rifle Light Assault Rifle [Rating: 22] Favorites ----------- Power Nuclear Core Engine Light Ion Engine Power Core Nuclear Core Propulsion Wheel Wheel Wheel Utility Large Storage Unit Device Improved Terrain Scanner Storage Large Storage Unit Processor Transport Network Coupler Hackware System Shield Protection Improved Utility Shielding Weapon Assault Rifle Energy Gun Improved EM Shotgun Energy Cannon Advanced Beam Cannon Ballistic Gun Assault Rifle Build | -11 -10 -9 -9 -8 ------- Run | Yrd Mat Mat Min Mat Slots Evolved 4 | . . 2 . 2 Power 1 | . . . . 1 Propulsion 2 | . . 2 . . Utility 1 | . . . . 1 Weapon . | . . . . . Parts Attached 30 | 7 4 10 2 7 Power 5 | 1 . 2 . 2 Engine 2 | 1 . . . 1 Core 3 | . . 2 . 1 Reactor . | . . . . . Propulsion 4 | 2 . 2 . . Treads . | . . . . . Leg . | . . . . . Wheel 4 | 2 . 2 . . Hover . | . . . . . Flight . | . . . . . Utility 12 | 2 4 3 . 3 Device 1 | 1 . . . . Storage 7 | 1 3 2 . 1 Processor 2 | . 1 1 . . Hackware 1 | . . . . 1 Protection 1 | . . . . 1 Artifact . | . . . . . Weapon 9 | 2 . 3 2 2 Energy Gun 2 | . . 1 1 . Energy Cannon 2 | . . 1 . 1 Ballistic Gun 5 | 2 . 1 1 1 Ballistic Cannon . | . . . . . Launcher . | . . . . . Special Weapon . | . . . . . Impact Weapon . | . . . . . Slashing Weapon . | . . . . . Piercing Weapon . | . . . . . Special Melee Weapon . | . . . . . Unidentified Prototypes 2 | . . 2 . . Parts Lost 11 | . . 1 3 7 Power 3 | . . . . 3 Propulsion 4 | . . 1 1 2 Utility 1 | . . . 1 . Weapon 3 | . . . 1 2 Highest Loss Streak 4 | . . 1 2 4 To Critical Strikes . | . . . . . Average Slot Usage (%) 85 | . 99 97 66 69 Engine 5 | . 14 1 . 3 Core 7 | . . 9 11 11 Wheel 27 | . 28 41 23 15 Device 1 | . 6 . . . Storage 11 | . 13 11 11 9 Processor 5 | . 7 11 1 . Hackware 2 | . . . . 7 Protection 2 | . . . . 7 Energy Cannon 3 | . . 6 2 6 Ballistic Gun 16 | . 28 15 11 9 Naked Turns . | . . . . . Heaviest Build 103 | 13 18 33 33 103 Greatest Support 40 | 20 20 40 20 20 Greatest Overweight (x) 29 | . . 1 1 29 Average Overweight (x) . | . . . 1 4 Largest Inventory Capacity 25 | 8 20 20 15 25 Average Capacity 14 | 7 9 15 15 21 Most Carried 15 | 6 10 15 13 13 Average Carried 10 | 4 8 12 13 10 Final Capacity 25 | 8 10 15 15 25 Final Carried 13 | 6 10 13 13 10 Class Distribution -------------------- 100% | Mutant Dominant Class ---------------- Mutant | -10/Materials Mutant | -9/Materials Mutant | -9/Mines Mutant | -8/Materials Resources | -11 -10 -9 -9 -8 ----------- Run | Yrd Mat Mat Min Mat Matter Collected 600 | 294 54 147 48 57 Remotely . | . . . . . Salvage Created 676 | 77 73 186 283 57 Parts 49 | 7 5 14 21 2 Haulers Intercepted 2 | . 1 1 . . Recyclers Shooed 3 | . . 1 2 . Parts Field Recycled . | . . . . . Retrieved Matter . | . . . . . Parts Self-Destructed . | . . . . . Prevented . | . . . . . Kills | -11 -10 -9 -9 -8 ------- Run | Yrd Mat Mat Min Mat Combat Hostiles Destroyed 9 | . . 1 7 1 Guns 4 | . . . 4 . Cannons 4 | . . 1 2 1 AOE 1 | . . . 1 . Classes Destroyed 7 | 2 1 2 1 1 Worker 2 | . . 2 . . Tunneler 2 | 1 1 . . . Hauler 2 | . 1 1 . . Recycler 4 | 1 . 1 2 . Swarmer 7 | . . . 7 . Duelist 1 | . . 1 . . Hunter 1 | . . . . 1 Best Kill Streak 5 | 2 1 4 5 1 Combat Bots Only 4 | . . 1 4 1 Max Kills in Single Turn 2 | 1 1 2 2 1 Gunslinging . | . . . . . Exploded 1 | . . . 1 . Melee . | . . . . . Uniques/NPCs Destroyed . | . . . . . Combat | -11 -10 -9 -9 -8 -------- Run | Yrd Mat Mat Min Mat Hostile Shots Fired 92 | . . 27 23 42 Missed 18 | . . 5 7 6 Damage Taken 1120 | . 21 356 197 546 Core 239 | . 12 53 9 165 Absorbed by Shields . | . . . . . Redirected to Shielding 29 | . . . . 29 Core Remaining (%) 93 | 100 95 . 84 . Volleys Fired 50 | 4 4 20 15 7 Largest 2 | 2 2 2 2 2 Hottest 93 | 40 40 88 88 93 Shots Fired 99 | 8 8 40 29 14 Gun 69 | 8 8 23 23 7 Cannon 30 | . . 17 6 7 Launcher . | . . . . . Special . | . . . . . Kinetic 61 | 8 8 23 15 7 Thermal 30 | . . 17 6 7 Explosive . | . . . . . Electromagnetic 8 | . . . 8 . Robot Hit Streak 9 | 2 3 9 6 9 Robot Miss Streak 5 | 2 2 4 5 2 Penetration Max . | . . . . . Secondary Targets . | . . . . . Shots Hit Robots 57 | 4 5 22 16 10 Core Hits 26 | 3 3 6 12 2 Critical Kills . | . . . . . Critical Parts Destroyed . | . . . . . Critical Strikes . | . . . . . Melee Attacks . | . . . . . Impact . | . . . . . Slashing . | . . . . . Piercing . | . . . . . Sneak Attacks . | . . . . . Combat Hostiles . | . . . . . Follow-up Attacks . | . . . . . Damage Inflicted 1088 | 52 84 444 331 177 Guns 486 | 52 58 155 167 54 Cannons 452 | . . 267 62 123 Explosions 102 | . . . 102 . Melee . | . . . . . Ramming 48 | . 26 22 . . Kinetic 367 | 52 58 155 48 54 Thermal 554 | . . 267 164 123 Explosive . | . . . . . Electromagnetic 119 | . . . 119 . Impact . | . . . . . Slashing . | . . . . . Piercing . | . . . . . Highest Corruption . | . . . . . Average Corruption . | . . . . . Corruption Purged . | . . . . . Corruption Blocked . | . . . . . Overload Shots . | . . . . . Overflow Damage 42 | . . . 26 16 Projectiles 17 | . . . 1 16 Explosions 25 | . . . 25 . Melee . | . . . . . Knockbacks . | . . . . . Impact . | . . . . . Kinetic . | . . . . . Secondary . | . . . . . Self-Inflicted Damage 89 | . 12 11 66 . Shots 2 | . . . 2 . Rammed 6 | . 5 1 . . Targets Rammed 6 | . 5 1 . . Kicked . | . . . . . Crushed . | . . . . . Highest Temperature 165 | . . 165 123 150 Average Temperature 64 | . . 67 51 79 Received Heat Transfer 210 | . . 102 . 108 Siege Activations . | . . . . . Robots Corrupted . | . . . . . Combat Hostiles . | . . . . . Parts Fried . | . . . . . Impact Corruptions . | . . . . . Robots Melted . | . . . . . Combat Hostiles . | . . . . . Parts Melted 1 | . . . 1 . Heat Transferred 1014 | . . 481 311 222 Parts Sabotaged . | . . . . . Parts Stolen . | . . . . . Parts Stripped . | . . . . . Power Chain Reactions 2 | . . . 2 . Alert | -11 -10 -9 -9 -8 ------- Run | Yrd Mat Mat Min Mat Peak Influence 235 | 10 46 115 235 126 Initial 91 | . 6 18 40 91 Average 66 | 5 30 57 154 99 Maximum Alert Level 1 | . . . 1 . Low Security (%) 97 | 100 100 100 75 100 Level 1 2 | . . . 24 . Level 2 . | . . . . . Level 3 . | . . . . . Level 4 . | . . . . . Level 5 . | . . . . . High Security . | . . . . . Max Security . | . . . . . Squads Dispatched 4 | . 1 3 . . Investigation 2 | . 1 1 . . Extermination . | . . . . . Reinforcement 2 | . . 2 . . Assault . | . . . . . Garrison . | . . . . . Intercept . | . . . . . Searches Triggered . | . . . . . Construction Impeded . | . . . . . Haulers Reinforced . | . . . . . Active Scanning Responses . | . . . . . Cargo Convoy Interrupts . | . . . . . Stealth | -11 -10 -9 -9 -8 --------- Run | Yrd Mat Mat Min Mat Distress Signals 2 | . . 2 . . Communications Jammed . | . . . . . Distress Signals . | . . . . . Times Spotted 22 | . 3 8 8 3 Peak Tracking Total 4 | . 2 4 4 2 Tactical Retreats 3 | . . 1 1 1 Traps | -11 -10 -9 -9 -8 ------- Run | Yrd Mat Mat Min Mat Traps Triggered 1 | . . 1 . . Indirectly . | . . . . . Trap Hack Attempts . | . . . . . Triggered . | . . . . . Disarmed . | . . . . . Reprogrammed . | . . . . . Reused . | . . . . . Traps Extracted . | . . . . . Installed . | . . . . . Triggered . | . . . . . Machines | -11 -10 -9 -9 -8 ---------- Run | Yrd Mat Mat Min Mat Machines Disabled 1 | . . . 1 . Max in Single Turn 1 | . . . 1 . Machines Repaired . | . . . . . Machines Dismantled . | . . . . . Machines Sabotaged . | . . . . . Overloaded Fab Kills . | . . . . . Hacking | -11 -10 -9 -9 -8 --------- Run | Yrd Mat Mat Min Mat Machines Accessed 5 | . 4 . . 1 Terminals 5 | . 4 . . 1 Fabricators . | . . . . . Repair Stations . | . . . . . Recycling Units . | . . . . . Scanalyzers . | . . . . . Garrison Access . | . . . . . Total Hacks 22 | . 16 . . 6 Successful 13 | . 9 . . 4 Failed 9 | . 7 . . 2 Catastrophic 2 | . 1 . . 1 Database Lockouts . | . . . . . Manual 2 | . . . . 2 Terminals 22 | . 16 . . 6 Fabricators . | . . . . . Repair Stations . | . . . . . Recycling Units . | . . . . . Scanalyzers . | . . . . . Garrison Access . | . . . . . Terminal Hacks 13 | . 9 . . 4 Record 6 | . 4 . . 2 Robot Analysis 1 | . . . . 1 Prototype ID Bank 1 | . 1 . . . Alert Level 2 | . 1 . . 1 Locate Traps 2 | . 2 . . . Dispatch Records 1 | . 1 . . . Fabricator Hacks . | . . . . . Repair Station Hacks . | . . . . . Recycling Unit Hacks . | . . . . . Scanalyzer . | . . . . . Garrison Access Hacks . | . . . . . Unauthorized Hacks . | . . . . . Terminals . | . . . . . Fabricators . | . . . . . Repair Stations . | . . . . . Recycling Units . | . . . . . Scanalyzers . | . . . . . Garrison Access . | . . . . . Data Cores Recovered . | . . . . . Used . | . . . . . Hacking Detections 4 | . 3 . . 1 Full Trace Events 3 | . 2 . . 1 Feedback Events . | . . . . . Feedback Blocked . | . . . . . Robot Schematics Acquired . | . . . . . Robots Built . | . . . . . Authchips . | . . . . . Time . | . . . . . Total Robot Build Rating . | . . . . . Part Schematics Acquired . | . . . . . Parts Built . | . . . . . Authchips . | . . . . . Time . | . . . . . Total Part Build Rating . | . . . . . Parts Repaired . | . . . . . Time . | . . . . . Parts Recycled . | . . . . . Recycled Matter . | . . . . . Retrieved Matter . | . . . . . Retrieved Components . | . . . . . Parts Scanalyzed . | . . . . . Part Schematics Acquired . | . . . . . Parts Damaged . | . . . . . Bothacking | -11 -10 -9 -9 -8 ------------ Run | Yrd Mat Mat Min Mat Used RIF Installer . | . . . . . Robots Hacked . | . . . . . Non-combat . | . . . . . Combat . | . . . . . Robot Hacks Applied . | . . . . . Relay Couplers Released . | . . . . . Fabnet Peak Effective % . | . . . . . Robots Rewired . | . . . . . Allies Hacked . | . . . . . Hacks Repelled . | . . . . . Allies | -11 -10 -9 -9 -8 -------- Run | Yrd Mat Mat Min Mat Total Allies . | . . . . . Largest Group . | . . . . . Highest-Rated Group . | . . . . . Highest-Rated Ally . | . . . . . Total Orders . | . . . . . Ally Attacks . | . . . . . Total Damage . | . . . . . Kills . | . . . . . Allies Corrupted . | . . . . . Allies Melted . | . . . . . Intel | -11 -10 -9 -9 -8 ------- Run | Yrd Mat Mat Min Mat Robot Analysis Total 1 | . . . . 1 Derelict Logs Recovered . | . . . . . Drone Launches . | . . . . . Drone Recoveries . | . . . . . Exploration | -11 -10 -9 -9 -8 ------------- Run | Yrd Mat Mat Min Mat Turns Passed 815 | 79 225 209 94 208 Spaces Moved 627 | 62 245 151 52 117 Core 8 | 7 . . . 1 Treads . | . . . . . Legs . | . . . . . Wheels 619 | 55 245 151 52 116 Hover . | . . . . . Flight . | . . . . . Fastest Speed 50 | 50 80 80 95 95 Average Speed 94 | 76 80 83 95 150 Slowest Speed 1500 | 80 80 95 95 1500 Overloaded Moves . | . . . . . Propulsion Burnouts . | . . . . . Robots Hopped . | . . . . . Cave-ins Triggered . | . . . . . Exploration Rate (%) 14 | 4 32 19 8 9 Regions Visited 4 Branch Regions 1 Pre-discovered Areas . | . . . . . Known Exits Taken . | . . . . . Unknown Exits Taken 4 | 1 1 1 1 . Scrap Searched . | . . . . . Spaces Dug . | . . . . . Terrain Destroyed 10 | . . . 10 . Melee . | . . . . . Projectile . | . . . . . AOE 10 | . . . 10 . Terrain Rammed . | . . . . . Walls Destroyed . | . . . . . Machines Disabled . | . . . . . Actions | -11 -10 -9 -9 -8 --------- Run | Yrd Mat Mat Min Mat Total 742 | 84 264 191 68 135 Wait . | . . . . . Move 623 | 61 244 150 51 117 Hop . | . . . . . Pick Up 29 | 12 6 8 . 3 Fast Attach 2 | 1 1 . . . Attach 13 | 6 . 2 . 5 Detach . | . . . . . Swap 15 | . 3 8 2 2 Drop 4 | . 1 2 . 1 Fire 50 | 4 4 20 15 7 Melee . | . . . . . Ram 6 | . 5 1 . . Kick . | . . . . . Crush . | . . . . . Escape Stasis . | . . . . . Rewire . | . . . . . Trap . | . . . . . Miscellaneous . | . . . . . Route ------- -11/Scrapyard -10/Materials -9/Materials -9/Mines -8/Materials History --------- Turn | Location | Event 4 | -11/Scrapyard | Discovered new exit (range 16) 80 | -11/Scrapyard | Entered Materials 268 | -10/Materials | Discovered new exit (range 16) 301 | -10/Materials | Build established: Mutant 305 | -10/Materials | Entered another Materials area 305 | -9/Materials | Evolved 2 slots: Propulsion x2 497 | -9/Materials | Discovered new exit (range 13) 514 | -9/Materials | Entered Mines 579 | -9/Mines | Discovered new exit (range 8) 608 | -9/Mines | Entered Materials 608 | -8/Materials | Evolved 2 slots: Power x1, Utility x1 781 | -8/Materials | Lost 3 parts (2p1n) 816 | -8/Materials | Self-destructed Last Messages --------------- render the component itself useless. Advanced scanalyzers are equipped with a wider array of devices for more quickly and safely analyzing esoteric technologies. Slug penetrates Wall. Penetrated by Slug. Nuclear Core destroyed. Destroyed Lgt. Nuclear Core. Penetrated by Slug. Wheel destroyed. H-55 Commando destroyed. Acquired 57 matter. Acquired Gauss Rifle. Dropped Gauss Rifle. Adv. Beam Cannon destroyed. Wheel destroyed. K-01 Serf collects debris. Lgt. Ion Engine destroyed. Critical hit (Burn: +37). Minigun destroyed. Map ----- +----------------------------------------------------+ | | | | | | | | | | | | | | | | | | | ?????????????????????????????????????????????????? | | ?????????????????????????????????????????????????? | | ?????????????????????????????????????????????????? | | ?????????????????????????????????????????????????? | | ??############################???????????????????? | | ??# ??????????????????? | | ??# ??????????????????? | | ??# ??????????????????? | | ??############ ###########?#######?????????????? | | ??????# # #???????????# #?????????????? | | ??????# # #?????####### #?????????????? | | ??????# + ####### # """ #?????????????? | | ??????# # # """ #?????????????? | | ??????# # [+ """ #?????????????? | | ??????#! # # #?????????????? | | ??????##############+### =# "T" #?????????????? | | ??????????????# ##@ ## """ #?????????????? | | ??????????????# ## ########?????????????? | | ??????????????# ## #????????????????????? | | ??????????????# ## Y####### #????????? | | ??????????????# """ ## #????????? | | ??????????????# """"" ## u +????????? | | ??????????????# """"" ## #????????? | | ??????????????# """"" ### ####+### #????????? | | ??????????????# """ #?# #??? ????####????????? | | ??????????????##########?# #???? ????????????????? | | ?????????????????????????# #????? ???????????????? | | ?????????????????????????#Y#??????#??????????????? | | ?????????????????????????# #?????????????????????? | | ?????????????????????????# ??????????????????????? | | ?????????????????????????# ??????????????????????? | | ?????????????????????????# ??????????????????????? | | ?????????????????????????? ??????????????????????? | | ?????????????????????????? ??????????????????????? | | ?????????????????????????? ??????????????????????? | | ?????????????????????????????????????????????????? | | ?????????????????????????????????????????????????? | | ?????????????????????????????????????????????????? | | ?????????????????????????????????????????????????? | | ?????????????????????????????????????????????????? | | ?????????????????????????????????????????????????? | +----------------------------------------------------+ Best States ------------- Heat Dissipation 31 Energy Generation 23 Energy Capacity 380 Matter Stores 300 Matter Capacity 300 Sight Range 16 Terrain Scan Range 16 Terrain Scan Density 10 Utility Shielding 66 Evasion (%) 44 Defensive Hacking 10 Item Schematics ----------------- None Robot Schematics ------------------ None Fabricated ------------ Nothing Alien Tech Used ----------------- None Achievements -------------- None Challenges ------------ None Game ------ Seed MassAlertBlade Manual? 0 Play Time 00:16:55 Cumulative 5.7 hours Start 2024.04.03 @ 22:51:59 End 2024.04.04 @ 23:44:31 Sessions 2 Manual Loads 0 Difficulty Rogue Special Mode None Game No. 16 Rogue 16 Adventurer 0 Explorer 0 Win Type - Total 0 Types 0/0/0/0/0/0/0/0/0 Lore% 10 Gallery% 14 Achievement% 14 Wizard Run 0 Options --------- Layout 1 ASCII 0 Keyboard 0 Movement Arrows Keybinds 0 Fullscreen 1 Font 24/Smallcaps Map View 50x35 Zoom Use 0% Tactical HUD 0 Map Filters NONE Filters NONE Steam 1 RUN: b9877c6f-4b41-438a-993d-3c33c6635b50